Cogmind - Beta 10.1 @@@ ROGUE MODE // 2020.10.12 @ 16:01:24 Player: Cracklepappy Result: Core destroyed Performance ------------- Evolutions (0) 0 Regions Visited (0) 0 Robots Destroyed (20) 100 Value Destroyed (34) 34 Prototype IDs (0) 0 Alien Tech Used (0) 0 Bonus (0) 0 TOTAL SCORE: 134 Bonus ------- None Cogmind --------- Core Integrity 0/250 Matter 277/300 Energy 85/100 System Corruption 0% Temperature Cool (0) Movement Rolling (80) Location -11/Scrapyard Parts ------- > --- POWER (1) -------- (None) > --- PROPULSION (2) --- Wheel Wheel > --- UTILITY (2) ------ Small Storage Unit Small Storage Unit > --- WEAPON (2) ------- (None) > --- INVENTORY (8) ---- Wheel Compact Wheel Compact Wheel Peak State ------------ > --- POWER ------------ Light Ion Engine > --- PROPULSION ------- Compact Wheel Compact Wheel > --- UTILITY ---------- Small Storage Unit Improved Terrain Scanner > --- WEAPON ----------- Assault Rifle Mining Laser > --- INVENTORY -------- Light Ion Engine Light Treads Light Treads Small Storage Unit EM Pulse Gun Small Laser [Rating: 8] Favorites ----------- Power Light Ion Engine Engine Light Ion Engine Propulsion Compact Wheel Treads Light Treads Wheel Compact Wheel Utility Small Storage Unit Device Improved Terrain Scanner Storage Small Storage Unit Weapon Assault Rifle Energy Gun EM Pulse Gun Ballistic Gun Assault Rifle Special Weapon Mining Laser Build | -11 ------- Run | Scr Slots Evolved . | . Power . | . Propulsion . | . Utility . | . Weapon . | . Parts Attached 23 | 23 Power 3 | 3 Engine 3 | 3 Core . | . Reactor . | . Propulsion 7 | 7 Treads 3 | 3 Leg . | . Wheel 4 | 4 Hover . | . Flight . | . Utility 4 | 4 Device 1 | 1 Storage 3 | 3 Processor . | . Hackware . | . Protection . | . Artifact . | . Weapon 9 | 9 Energy Gun 4 | 4 Energy Cannon . | . Ballistic Gun 1 | 1 Ballistic Cannon . | . Launcher . | . Special Weapon 4 | 4 Impact Weapon . | . Slashing Weapon . | . Piercing Weapon . | . Special Melee Weapon . | . Unidentified Prototypes . | . Parts Lost 10 | 10 Power 2 | 2 Propulsion 2 | 2 Utility . | . Weapon 6 | 6 Highest Loss Streak 6 | 6 Average Slot Usage (%) . | . Naked Turns . | . Heaviest Build 15 | 15 Greatest Support 40 | 40 Greatest Overweight (x) 4 | 4 Average Overweight (x) . | . Largest Inventory Capacity 8 | 8 Average Capacity 7 | 7 Most Carried 8 | 8 Average Carried 7 | 7 Final Capacity 8 | 8 Final Carried 3 | 3 Class Distribution -------------------- None Dominant Class ---------------- None Resources | -11 ----------- Run | Scr Matter Collected 553 | 553 Remotely . | . Salvage Created 343 | 343 Parts 17 | 17 Haulers Intercepted . | . Recyclers Shooed . | . Parts Field Recycled . | . Retrieved Matter . | . Parts Self-Destructed . | . Prevented . | . Kills | -11 ------- Run | Scr Combat Hostiles Destroyed 15 | 15 Guns 13 | 13 Cannons 2 | 2 Classes Destroyed 3 | 3 Tunneler 4 | 4 Recycler 1 | 1 Assembled 15 | 15 Best Kill Streak 3 | 3 Combat Bots Only 3 | 3 Max Kills in Single Turn 1 | 1 Gunslinging . | . Exploded . | . Melee . | . Uniques/NPCs Destroyed . | . Combat | -11 -------- Run | Scr Damage Taken 995 | 995 Core 261 | 261 Absorbed by Shields . | . Core Remaining (%) . | . Volleys Fired 124 | 124 Largest 2 | 2 Hottest 200 | 200 Shots Fired 176 | 176 Gun 128 | 128 Cannon . | . Launcher . | . Special 48 | 48 Kinetic 74 | 74 Thermal 77 | 77 Explosive . | . Electromagnetic 25 | 25 Robot Hit Streak 6 | 6 Robot Miss Streak 6 | 6 Penetration Max . | . Secondary Targets 1 | 1 Max Gunslinging Chain 1 | 1 Shots Hit Robots 74 | 74 Core Hits 38 | 38 Critical Hits . | . Critical Kills . | . Critical Parts Destroyed . | . Melee Attacks . | . Impact . | . Slashing . | . Piercing . | . Sneak Attacks . | . Combat Hostiles . | . Follow-up Attacks . | . Damage Inflicted 830 | 830 Guns 762 | 762 Cannons . | . Explosions . | . Melee . | . Ramming 20 | 20 Kinetic 448 | 448 Thermal 222 | 222 Explosive . | . Electromagnetic 140 | 140 Impact . | . Slashing . | . Piercing . | . Highest Corruption . | . Average Corruption . | . Corruption Purged . | . Overload Shots . | . Overflow Damage . | . Projectiles . | . Explosions . | . Melee . | . Knockbacks . | . Impact . | . Kinetic . | . Secondary . | . Self-Inflicted Damage 8 | 8 Shots . | . Rammed 9 | 9 Targets Rammed 9 | 9 Kicked . | . Crushed . | . Highest Temperature 180 | 180 Average Temperature 44 | 44 Received Heat Transfer 140 | 140 Siege Activations . | . Robots Corrupted . | . Combat Hostiles . | . Parts Fried . | . Impact Corruptions . | . Robots Melted . | . Combat Hostiles . | . Parts Melted . | . Heat Transferred 500 | 500 Parts Sabotaged . | . Parts Stolen . | . Parts Stripped . | . Power Chain Reactions . | . Missiles Intercepted . | . Alert | -11 ------- Run | Scr Peak Influence 40 | 40 Initial . | . Average 2 | 2 Maximum Alert Level . | . Low Security (%) 100 | 100 Level 1 . | . Level 2 . | . Level 3 . | . Level 4 . | . Level 5 . | . High Security . | . Max Security . | . Squads Dispatched . | . Investigation . | . Extermination . | . Reinforcement . | . Assault . | . Garrison . | . Intercept . | . Construction Impeded . | . Haulers Reinforced . | . Stealth | -11 --------- Run | Scr Distress Signals . | . Communications Jammed . | . Distress Signals . | . Times Spotted 17 | 17 Peak Tracking Total 2 | 2 Tactical Retreats 1 | 1 Traps | -11 ------- Run | Scr Traps Triggered . | . Indirectly . | . Trap Hack Attempts . | . Triggered . | . Disarmed . | . Reprogrammed . | . Reused . | . Traps Extracted . | . Installed . | . Triggered . | . Machines | -11 ---------- Run | Scr Machines Disabled . | . Max in Single Turn . | . Machines Sabotaged . | . Garrisons Compromised . | . Overloaded Fab Kills . | . Fab Network Shutdowns . | . Hacking | -11 --------- Run | Scr Machines Accessed . | . Terminals . | . Fabricators . | . Repair Stations . | . Recycling Units . | . Scanalyzers . | . Garrison Access . | . Total Hacks . | . Successful . | . Failed . | . Catastrophic . | . Database Lockouts . | . Manual . | . Terminals . | . Fabricators . | . Repair Stations . | . Recycling Units . | . Scanalyzers . | . Garrison Access . | . Terminal Hacks . | . Fabricator Hacks . | . Repair Station Hacks . | . Recycling Unit Hacks . | . Scanalyzer . | . Garrison Access Hacks . | . Unauthorized Hacks . | . Terminals . | . Fabricators . | . Repair Stations . | . Recycling Units . | . Scanalyzers . | . Garrison Access . | . Data Cores Recovered . | . Used . | . Hacking Detections . | . Full Trace Events . | . Feedback Events . | . Feedback Blocked . | . Robot Schematics Acquired . | . Robots Built . | . Matter . | . Time . | . Total Robot Build Rating . | . Part Schematics Acquired . | . Parts Built . | . Matter . | . Time . | . Total Part Build Rating . | . Parts Repaired . | . Time . | . Parts Recycled . | . Recycled Matter . | . Retrieved Matter . | . Retrieved Components . | . Parts Scanalyzed . | . Part Schematics Acquired . | . Parts Damaged . | . Bothacking | -11 ------------ Run | Scr Used RIF Installer . | . Robots Hacked . | . Non-combat . | . Combat . | . Robot Hacks Applied . | . Relay Couplers Released . | . Robots Rewired . | . Allies Hacked . | . Hacks Repelled . | . Allies | -11 -------- Run | Scr Total Allies . | . Largest Group . | . Highest-Rated Group . | . Highest-Rated Ally . | . Total Orders . | . Ally Attacks . | . Total Damage . | . Kills . | . Allies Corrupted . | . Allies Melted . | . Intel | -11 ------- Run | Scr Robot Analysis Total . | . Derelict Logs Recovered . | . Drone Launches . | . Drone Recoveries . | . Exploration | -11 ------------- Run | Scr Turns Passed 11894 | 11894 Spaces Moved 1944 | 1944 Core 112 | 112 Treads 162 | 162 Legs . | . Wheels 1670 | 1670 Hover . | . Flight . | . Fastest Speed 50 | 50 Average Speed 113 | 113 Slowest Speed 250 | 250 Overloaded Moves . | . Propulsion Burnouts . | . Robots Hopped . | . Cave-ins Triggered . | . Exploration Rate (%) 87 | 87 Regions Visited . Branch Regions . Pre-discovered Areas . | . Known Exits Taken . | . Unknown Exits Taken . | . Scrap Searched . | . Spaces Dug 15 | 15 Terrain Destroyed 25 | 25 Melee . | . Projectile 25 | 25 AOE . | . Terrain Rammed . | . Walls Destroyed . | . Machines Disabled . | . Actions | -11 --------- Run | Scr Total 11356 | 11356 Wait 9231 | 9231 Move 1944 | 1944 Hop . | . Pick Up 19 | 19 Fast Attach 5 | 5 Attach 11 | 11 Detach . | . Swap 7 | 7 Drop 7 | 7 Fire 124 | 124 Melee . | . Ram 8 | 8 Kick . | . Crush . | . Escape Stasis . | . Rewire . | . Trap . | . Miscellaneous . | . Route ------- -11/Scrapyard (discovered 1 exit: [*Mat]) History --------- Turn | Location | Event 22 | -11/Scrapyard | Discovered new exit (range 13) 11084 | -11/Scrapyard | Assembled infested the area 11689 | -11/Scrapyard | Core integrity fell below 50% 11842 | -11/Scrapyard | Lost 3 parts (3w) 11872 | -11/Scrapyard | Core integrity fell below 20% 11895 | -11/Scrapyard | Core destroyed Last Messages --------------- 11740_ as-00704 destroyed. 11752_ Acquired 13 matter. 11764_ Acquired 19 matter. 11779_ Assault Rifle destroyed. 11779_ as-18510 destroyed. 11787_ Acquired 19 matter. 11800_ EM Pulse Gun destroyed. 11811_ Mining Laser destroyed. 11814_ as-25286 destroyed. 11839_ Acquired Mining Laser. 11852_ Lgt. Ion Engine destroyed. 11854_ as-47268 destroyed. 11862_ Lgt. Treads destroyed. 11863_ Critical hit. 11863_ Lgt. Treads destroyed. 11875_ Mining Laser destroyed. 11881_ Slammed into as-78089. 11882_ Lgt. Ion Engine destroyed. 11883_ Slammed into as-78089. 11895_ Destabilizing: Core damaged (-12). Map ----- +----------------------------------------------------+ | ??# ##??#????##?#### # #?????? | | # #?????#?##??### # # #?????? | | ###??#??#?????### # #?????? | | ################ # # #?????? | | ###### ## ####### # ######???#?? | | ?????# ##?#??## ##########?????? | | ?#???# ###??????# #? #???#?? | | ?????# #??#?###?# # ##????? | | ?????# #?#?##??## # #?????? | | ??#??# ##??#??#?# ##????? | | ?????# #????????# # #?????? | | ?????# ######?### # #?????? | | ?????# ######## ###### #### # #?????? | | ??? ?# #??#???###?#??# #? #?????? | | ?????# #??#?????#???## #?? #?????? | | ????? #?#?????#???#?# ### #############?????? | | ???? # ???????#??????## ## #???????? | | ??? # #??????##??????# ## ##??????? | | ???#?# ????????????#??# ## #???????? | | ????? ???#???????????# ## #???????? | | ????? ??????????#?#???# ## #???????? | | ?????? ??? ?????#??????# ## #???????? | | ???????????????????????# #######################? | | ?????????????###??#???## #? #????# #? | | ?????????????#*#########a # #????# #? | | ??????????#??# @# #??#?# #? | | ########?????# #????# #? | | # #?????# # #????# #? | | # #?????# !# ##???# #? | | # #?????########### ########????# ?? | | # ##########???# != #????????? ? ???? | | # #* = ##??# #??????????### ###### | | ?? # * = ###?# !############ | | #### ### ##### = | =%* | | %= ! * ! | | !* ** #### | | #### ### = ##### < #??# | | ?? # #???# #??# | | # # #???##########??# | | # #### ###########????????# | | # #??# # #?##?#???# | | # #??# # #????????# | | # #??# #????????# | | ########??# # #???#????# | | ??????????# # #????????# | | ??????????# # #????????# ### ###### # | | ??????????# # #????????###### ????# | | ??????????# # #?????????????# ????# | | ???######## ###########?????????????# ????# | | ???# #?????######????????????# ????# | +----------------------------------------------------+ Best States ------------- Heat Dissipation 25 Energy Generation 10 Energy Capacity 125 Matter Stores 288 Matter Capacity 300 Sight Range 16 Terrain Scan Range 16 Terrain Scan Density 10 Evasion (%) 40 Recoil Reduction 2 Item Schematics ----------------- None Robot Schematics ------------------ None Fabricated ------------ Nothing Alien Tech Used ----------------- None Achievements -------------- None Challenges ------------ None Game ------ Seed ReflectivePrecisionPrototype Manual? 0 Play Time 00:30:42 Cumulative 209.8 hours Start 2020.10.12 @ 15:34:40 End 2020.10.12 @ 16:01:24 Sessions 0 Manual Loads 0 Difficulty Rogue Special Mode None Game No. 233 Rogue 233 Adventurer 0 Explorer 0 Win Type - Total 2 Types 2/0/0/0/0/0/0/0/0 Lore% 61 Gallery% 75 Achievement% 58 Wizard Run 0 Options --------- ASCII 0 Keyboard 0 Movement Numpad Keybinds 0 Fullscreen 2 Font 24/Smallcaps Map View 76x50 Tactical HUD 1 Map Filters NONE Filters NONE Steam 1 RUN: 9df912f4-fc0e-45ed-8f91-7080e25a1b31